fUST/lending_fUST_20250102
["ID","MTS","AMOUNT","RATE_DAILY","PERIOD"]
[347422457,1735781445127,-151.0,0.00019452,2]
[347422458,1735781445136,-253.160267,0.00019452,2]
[347422459,1735781445145,-500.0,0.00019452,3]
[347422460,1735781445154,-500.0,0.00019452,3]
[347422461,1735781445163,-180.61,0.00019452,3]
[347422462,1735781445173,-561.35141222,0.00019452,3]
[347422463,1735781445183,-500.0,0.00019452,3]
[347422464,1735781445192,-500.0,0.00019452,3]
[347422465,1735781445201,-500.0,0.00019452,3]
[347422466,1735781445211,-209.83,0.00019452,3]
[347422467,1735781445221,-635.64,0.00019452,3]
[347422468,1735781445230,-164.74484766,0.00019452,3]
[347422469,1735781445239,-500.0,0.00019452,3]
[347422470,1735781445249,-3171.44,0.00019452,3]
[347422471,1735781445258,-500.0,0.00019452,3]
[347422472,1735781445267,-608.36,0.00019452,3]
[347422473,1735781445277,-500.0,0.00019452,3]
[347422474,1735781445287,-567.2,0.00019452,3]
[347422475,1735781445296,-500.0,0.00019452,3]
[347422476,1735781445306,-552.0,0.00019452,3]
[347422477,1735781445315,-588.36,0.00019452,3]
[347422478,1735781445324,-500.0,0.00019452,3]
[347422479,1735781445484,-682.65,0.00019452,3]
[347422480,1735781445493,-500.0,0.00019452,3]
[347422481,1735781445503,-500.0,0.00019452,3]
[347422482,1735781445512,-688.94,0.00019452,3]
[347422483,1735781445523,-500.0,0.00019452,3]
[347422484,1735781445532,-500.0,0.00019452,3]
[347422485,1735781445541,-500.0,0.00019452,3]
[347422486,1735781445550,-500.0,0.00019452,3]
[347422487,1735781445559,-614.51,0.00019452,3]
[347422489,1735781445569,-500.0,0.00019452,3]
[347422491,1735781445578,-500.0,0.00019452,3]
[347422493,1735781445587,-500.0,0.00019452,3]
[347422494,1735781445596,-1968.22,0.00019452,3]
[347422495,1735781445606,-563.24,0.00019452,3]
[347422496,1735781445616,-439.73583281,0.00019452,3]
[347422497,1735781445628,-500.0,0.00019452,3]
[347422498,1735781445638,-500.0,0.00019452,3]
[347422499,1735781445647,-500.0,0.00019452,3]
[347422500,1735781445657,-500.0,0.00019452,3]
[347422501,1735781445667,-500.0,0.00019452,3]
[347422502,1735781445676,-772.57,0.00019452,3]
[347422504,1735781445685,-500.0,0.00019452,3]
[347422505,1735781445694,-500.0,0.00019452,3]
[347422506,1735781445704,-1364.88,0.00019452,3]
[347422507,1735781445713,-17282.47,0.00019452,3]
[347422508,1735781445723,-500.0,0.00019452,3]
[347422509,1735781445733,-500.0,0.00019452,3]
[347422510,1735781445743,-920.77,0.00019452,3]
[347422511,1735781445752,-650.43,0.00019452,3]
[347422512,1735781445762,-668.77,0.00019452,3]
[347422513,1735781445772,-3722.61,0.00019452,3]
[347422514,1735781445781,-500.0,0.00019452,3]
[347422515,1735781445791,-1336.34,0.00019452,3]
[347422516,1735781445800,-1957.8,0.00019452,3]
[347422517,1735781445809,-500.0,0.00019452,3]
[347422518,1735781445819,-2438.59,0.00019452,3]
[347422519,1735781445828,-907.56,0.00019452,2]
[347422520,1735781445838,-500.0,0.00019452,3]
[347422521,1735781445847,-500.0,0.00019452,3]
[347422522,1735781445856,-159.53779304,0.00019452,3]
[347422523,1735781445866,-899.32,0.00019452,3]
[347422524,1735781445875,-871.54,0.00019452,3]
[347422525,1735781445884,-500.0,0.00019452,3]
[347422526,1735781445893,-500.0,0.00019452,3]
[347422527,1735781445902,-500.0,0.00019452,3]
[347422528,1735781445912,-583.03,0.00019452,3]
[347422529,1735781445921,-500.0,0.00019452,3]
[347422530,1735781445931,-1532.37,0.00019452,3]
[347422531,1735781445941,-500.0,0.00019452,3]
[347422532,1735781445950,-500.0,0.00019452,3]
[347422533,1735781445959,-955.72,0.00019452,3]
[347422534,1735781445969,-1437.5,0.00019452,3]
[347422535,1735781445978,-500.0,0.00019452,3]
[347422536,1735781445988,-500.0,0.00019452,3]
[347422537,1735781445997,-838.21,0.00019452,3]
[347422538,1735781446007,-500.0,0.00019452,3]
[347422540,1735781446017,-500.0,0.00019452,3]
[347422542,1735781446027,-500.0,0.00019452,3]
[347422544,1735781446036,-223.71058083,0.00019452,3]
[347422545,1735781446045,-841.01,0.00019452,3]
[347422546,1735781446054,-962.78,0.00019452,3]
[347422547,1735781446063,-500.0,0.00019452,3]
[347422548,1735781446072,-500.0,0.00019452,3]
[347422549,1735781446081,-1333.99,0.00019452,3]
[347422550,1735781446091,-500.0,0.00019452,3]
[347422551,1735781446100,-500.0,0.00019452,3]
[347422552,1735781446109,-500.0,0.00019473,2]
[347422553,1735781446119,-225.0,0.00019585,2]
[347422554,1735781446128,-324.64236567,0.00019657,2]
[347422555,1735781446138,-548.0000009,0.0001968,2]
[347422556,1735781446148,-151.0,0.0001969,2]
[347422557,1735781446158,-531.28828973,0.00019721,2]
[347422558,1735781446168,-239.720588,0.00019726,2]
[347422559,1735781446178,-151.0,0.00019726,2]
[347422560,1735781446187,-151.0,0.00019726,2]
[347422561,1735781446196,-151.0,0.00019726,2]
[347422562,1735781446205,-151.0,0.00019726,2]
[347422563,1735781446215,-500.0,0.00019726,3]
[347422564,1735781446224,-500.0,0.00019726,3]
[347422565,1735781446233,-500.0,0.00019726,3]
[347422566,1735781446243,-500.0,0.00019726,3]
[347422567,1735781446252,-500.0,0.00019726,3]
[347422568,1735781446261,-635.64,0.00019726,3]
[347422569,1735781446271,-313.49482044,0.00019726,3]
[347422570,1735781446280,-500.0,0.00019726,3]
[347422571,1735781446290,-3171.44,0.00019726,3]
[347422572,1735781446299,-608.36,0.00019726,3]
[347422573,1735781446309,-500.0,0.00019726,3]
[347422574,1735781446318,-567.2,0.00019726,3]
[347422575,1735781446327,-500.0,0.00019726,3]
[347422576,1735781446336,-552.0,0.00019726,3]
[347422577,1735781446345,-500.0,0.00019726,3]
[347422578,1735781446355,-682.65,0.00019726,3]
[347422579,1735781446364,-185.26433531,0.00019726,3]
[347422580,1735781446373,-500.0,0.00019726,3]
[347422581,1735781446382,-688.94,0.00019726,3]
[347422582,1735781446391,-500.0,0.00019726,3]
[347422583,1735781446400,-638.88492336,0.00019726,3]
[347422584,1735781446409,-500.0,0.00019726,3]
[347422585,1735781446418,-500.0,0.00019726,3]
[347422586,1735781446428,-614.51,0.00019726,3]
[347422587,1735781446438,-500.0,0.00019726,3]
[347422588,1735781446447,-500.0,0.00019726,3]
[347422589,1735781446457,-500.0,0.00019726,3]
[347422590,1735781446466,-1968.22,0.00019726,3]
[347422591,1735781446479,-563.24,0.00019726,3]
[347422592,1735781446488,-500.0,0.00019726,3]
[347422593,1735781446498,-500.0,0.00019726,3]
[347422594,1735781446507,-500.0,0.00019726,3]
[347422595,1735781446517,-500.0,0.00019726,3]
[347422596,1735781446526,-300.46393392,0.00019726,3]
[347422597,1735781446535,-772.57,0.00019726,3]
[347422598,1735781446544,-500.0,0.00019726,3]
[347422599,1735781446553,-500.0,0.00019726,3]
[347422600,1735781446562,-1364.88,0.00019726,3]
[347422601,1735781446571,-17282.47,0.00019726,3]
[347422602,1735781446581,-500.0,0.00019726,3]
[347422603,1735781446590,-500.0,0.00019726,3]
[347422604,1735781446599,-920.77,0.00019726,3]
[347422605,1735781446609,-650.43,0.00019726,3]
[347422606,1735781446618,-668.77,0.00019726,3]
[347422607,1735781446628,-3722.61,0.00019726,3]
[347422608,1735781446637,-500.0,0.00019726,3]
[347422609,1735781446647,-1336.34,0.00019726,3]
[347422610,1735781446656,-1957.8,0.00019726,3]
[347422611,1735781446665,-500.0,0.00019726,3]
[347422612,1735781446674,-2438.59,0.00019726,3]
[347422613,1735781446683,-907.56,0.00019726,2]
[347422614,1735781446692,-500.0,0.00019726,3]
[347422615,1735781446702,-500.0,0.00019726,3]
[347422616,1735781446712,-871.54,0.00019726,3]
[347422617,1735781446722,-500.0,0.00019726,3]
[347422618,1735781446732,-500.0,0.00019726,3]
[347422619,1735781446741,-500.0,0.00019726,3]
[347422620,1735781446751,-583.03,0.00019726,3]
[347422621,1735781446760,-500.0,0.00019726,3]
[347422622,1735781446770,-1532.37,0.00019726,3]
[347422623,1735781446779,-500.0,0.00019726,3]
[347422624,1735781446788,-500.0,0.00019726,3]
[347422625,1735781446798,-955.72,0.00019726,3]
[347422626,1735781446807,-1437.5,0.00019726,3]
[347422627,1735781446817,-500.0,0.00019726,3]
[347422628,1735781446826,-500.0,0.00019726,3]
[347422629,1735781446836,-838.21,0.00019726,3]
[347422630,1735781446845,-500.0,0.00019726,3]
[347422631,1735781446855,-500.0,0.00019726,3]
[347422632,1735781446864,-500.0,0.00019726,3]
[347422633,1735781446873,-841.01,0.00019726,3]
[347422634,1735781446883,-962.78,0.00019726,3]
[347422635,1735781446892,-500.0,0.00019726,3]
[347422636,1735781446902,-500.0,0.00019726,3]
[347422637,1735781446911,-1333.99,0.00019726,3]
[347422638,1735781446920,-500.0,0.00019726,3]
[347422639,1735781446930,-500.0,0.00019726,3]
[347422640,1735781446939,-457.44629792,0.00019763,2]
[347422641,1735781446950,-500.0,0.00019773,2]
[347422642,1735781446960,-529.0,0.00019847,2]
[347422643,1735781446970,-2352.0,0.00019847,2]
[347422644,1735781446979,-395.738,0.00019847,2]
[347422645,1735781446989,-362.02254026,0.000199,2]
[347422646,1735781446999,-169.85,0.00019956,2]
[347422647,1735781447009,-162.0,0.00019956,2]
[347422648,1735781447018,-162.0,0.00019956,2]
[347422649,1735781447028,-162.0,0.00019956,2]
[347422650,1735781447037,-162.0,0.00019956,2]
[347422651,1735781447047,-162.0,0.00019956,2]
[347422652,1735781447057,-162.0,0.00019956,2]
[347422653,1735781447067,-162.0,0.00019956,2]
[347422654,1735781447076,-162.0,0.00019956,2]
[347422655,1735781447085,-162.0,0.00019956,2]
[347422656,1735781447094,-166.02,0.00019956,2]
[347422657,1735781447103,-500.0,0.00019999,2]
[347422658,1735781447113,-204.05615476,0.00019999,2]
[347422659,1735781447123,-510.95592575,0.00019999,2]
[347422660,1735781447132,-151.0,0.0002,2]
[347422661,1735781447142,-151.0,0.0002,2]
[347422662,1735781447151,-500.0,0.0002,3]
[347422663,1735781447161,-500.0,0.0002,3]
[347422664,1735781447170,-500.0,0.0002,3]
[347422665,1735781447180,-500.0,0.0002,3]
[347422666,1735781447190,-500.0,0.0002,3]
[347422667,1735781447199,-635.64,0.0002,3]
[347422668,1735781447208,-500.0,0.0002,3]
[347422669,1735781447218,-3171.44,0.0002,3]
[347422670,1735781447227,-608.36,0.0002,3]
[347422671,1735781447236,-500.0,0.0002,3]
[347422672,1735781447245,-567.2,0.0002,3]
[347422673,1735781447255,-151.0,0.0002,2]
[347422674,1735781447264,-500.0,0.0002,3]
[347422675,1735781447274,-151.0,0.0002,2]
[347422676,1735781447283,-151.0,0.0002,2]
[347422677,1735781447292,-552.0,0.0002,3]
[347422678,1735781447302,-500.0,0.0002,3]
[347422679,1735781447311,-682.65,0.0002,3]
[347422680,1735781447320,-151.0,0.0002,2]
[347422681,1735781447330,-152.964046,0.0002,2]
[347422682,1735781447341,-151.0,0.0002,2]
[347422683,1735781447351,-224.771737,0.0002,2]
[347422684,1735781447359,-500.0,0.0002,3]
[347422685,1735781447369,-224.771737,0.0002,2]
[347422686,1735781447379,-688.94,0.0002,3]
[347422687,1735781447388,-500.0,0.0002,3]
[347422688,1735781447397,-500.0,0.0002,3]
[347422689,1735781447407,-151.0,0.0002,2]
[347422690,1735781447416,-500.0,0.0002,3]
[347422691,1735781447426,-614.51,0.0002,3]
[347422692,1735781447435,-500.0,0.0002,3]
[347422693,1735781447444,-500.0,0.0002,3]
[347422694,1735781447454,-500.0,0.0002,3]
[347422695,1735781447463,-1968.22,0.0002,3]
[347422696,1735781447472,-563.24,0.0002,3]
[347422697,1735781447481,-151.0,0.0002,2]
[347422698,1735781447491,-500.0,0.0002,3]
[347422699,1735781447500,-500.0,0.0002,3]
[347422700,1735781447509,-500.0,0.0002,3]
[347422701,1735781447518,-500.0,0.0002,3]
[347422702,1735781447529,-772.57,0.0002,3]
[347422703,1735781447538,-500.0,0.0002,3]
[347422704,1735781447548,-500.0,0.0002,3]
[347422705,1735781447558,-1364.88,0.0002,3]
[347422706,1735781447567,-17282.47,0.0002,3]
[347422707,1735781447576,-500.0,0.0002,3]
[347422708,1735781447586,-500.0,0.0002,3]
[347422709,1735781447595,-920.77,0.0002,3]
[347422710,1735781447604,-650.43,0.0002,3]
[347422711,1735781447614,-668.77,0.0002,3]
[347422712,1735781447623,-3722.61,0.0002,3]
[347422713,1735781447633,-500.0,0.0002,3]
[347422714,1735781447643,-1336.34,0.0002,3]
[347422715,1735781447652,-1957.8,0.0002,3]
[347422716,1735781447662,-500.0,0.0002,3]
[347422717,1735781447671,-2438.59,0.0002,3]
[347422718,1735781447681,-907.56,0.0002,2]
[347422719,1735781447690,-500.0,0.0002,3]
[347422720,1735781447699,-804.962658,0.0002,2]
[347422721,1735781447709,-804.962658,0.0002,2]
[347422722,1735781447719,-462.96059551,0.0002,3]
[347422723,1735781447730,-871.54,0.0002,3]
[347422724,1735781447739,-500.0,0.0002,3]
[347422725,1735781447749,-500.0,0.0002,3]
[347422726,1735781447758,-500.0,0.0002,3]
[347422727,1735781447767,-583.03,0.0002,3]
[347422728,1735781447777,-500.0,0.0002,3]
[347422729,1735781447787,-1532.37,0.0002,3]
[347422730,1735781447796,-500.0,0.0002,3]
[347422731,1735781447806,-500.0,0.0002,3]
[347422732,1735781447816,-955.72,0.0002,3]
[347422733,1735781447826,-1437.5,0.0002,3]
[347422734,1735781447835,-500.0,0.0002,3]
[347422735,1735781447845,-247.30724089,0.0002,3]
[347422736,1735781447855,-838.21,0.0002,3]
[347422737,1735781447864,-500.0,0.0002,3]
[347422738,1735781447873,-500.0,0.0002,3]
[347422739,1735781447883,-500.0,0.0002,3]
[347422740,1735781447891,-841.01,0.0002,3]
[347422741,1735781447901,-962.78,0.0002,3]
[347422742,1735781447910,-500.0,0.0002,3]
[347422743,1735781447919,-500.0,0.0002,3]
[347422744,1735781447928,-1333.99,0.0002,3]
[347422745,1735781447937,-500.0,0.0002,3]
[347422746,1735781447946,-500.0,0.0002,3]
[347422747,1735781447955,-1000.0,0.00020021,2]
[347422748,1735781447965,-198.600735,0.00020021,2]
[347422749,1735781447974,-198.600735,0.00020021,2]
[347422750,1735781447983,-151.0,0.00020021,2]
[347422751,1735781447992,-988.337518,0.00020021,2]
[347422752,1735781448002,-988.337518,0.00020021,2]
[347422753,1735781448011,-457.44629792,0.00020105,2]
[347422754,1735781448021,-151.0,0.0002011,2]
[347422755,1735781448031,-151.0,0.0002011,2]
[347422756,1735781448040,-362.02254016,0.00020111,2]
[347422757,1735781448050,-324.64236567,0.00020235,2]
[347422758,1735781448059,-500.0,0.00020273,3]
[347422759,1735781448068,-500.0,0.00020273,3]
[347422760,1735781448078,-211.317381,0.00020273,2]
[347422761,1735781448087,-151.187512,0.00020273,2]
[347422762,1735781448097,-151.187512,0.00020273,2]
[347422763,1735781448106,-151.0,0.00020273,2]
[347422764,1735781448115,-151.0,0.00020273,2]
[347422765,1735781448124,-151.0,0.00020273,2]
[347422766,1735781448133,-588.33040106,0.00020273,3]
[347422767,1735781448143,-500.0,0.00020273,3]
[347422768,1735781448152,-500.0,0.00020273,3]
[347422769,1735781448161,-635.64,0.00020273,3]
[347422770,1735781448170,-168.998437,0.00020273,2]
[347422771,1735781448179,-168.998437,0.00020273,2]
[347422772,1735781448188,-151.0,0.00020273,2]
[347422773,1735781448197,-151.0,0.00020273,2]
[347422774,1735781448207,-151.0,0.00020273,2]
[347422775,1735781448217,-500.0,0.00020273,3]
[347422776,1735781448227,-3171.44,0.00020273,3]
[347422777,1735781448236,-608.36,0.00020273,3]
[347422778,1735781448245,-500.0,0.00020273,3]
[347422779,1735781448254,-567.2,0.00020273,3]
[347422780,1735781448263,-500.0,0.00020273,3]
[347422781,1735781448274,-552.0,0.00020273,3]
[347422782,1735781448283,-500.0,0.00020273,3]
[347422783,1735781448292,-682.65,0.00020273,3]
[347422784,1735781448301,-151.0,0.00020273,2]
[347422785,1735781448311,-151.0,0.00020273,2]
[347422786,1735781448320,-224.771737,0.00020273,2]
[347422787,1735781448330,-500.0,0.00020273,3]
[347422788,1735781448340,-224.771737,0.00020273,2]
[347422789,1735781448350,-688.94,0.00020273,3]
[347422790,1735781448360,-500.0,0.00020273,3]
[347422791,1735781448371,-500.0,0.00020273,3]
[347422792,1735781448513,-151.0,0.00020273,2]
[347422793,1735781448530,-500.0,0.00020273,3]
[347422794,1735781448540,-614.51,0.00020273,3]
[347422795,1735781448549,-500.0,0.00020273,3]
[347422796,1735781448558,-500.0,0.00020273,3]
[347422797,1735781448568,-500.0,0.00020273,3]
[347422798,1735781448577,-1968.22,0.00020273,3]
[347422799,1735781448587,-563.24,0.00020273,3]
[347422800,1735781448596,-151.0,0.00020273,2]
[347422801,1735781448606,-500.0,0.00020273,3]
[347422802,1735781448616,-500.0,0.00020273,3]
[347422803,1735781448625,-500.0,0.00020273,3]
[347422804,1735781448635,-500.0,0.00020273,3]
[347422805,1735781448644,-772.57,0.00020273,3]
[347422806,1735781448655,-500.0,0.00020273,3]
[347422807,1735781448664,-500.0,0.00020273,3]
[347422808,1735781448674,-1364.88,0.00020273,3]
[347422809,1735781448684,-17282.47,0.00020273,3]
[347422810,1735781448694,-500.0,0.00020273,3]
[347422811,1735781448703,-500.0,0.00020273,3]
[347422812,1735781448713,-920.77,0.00020273,3]
[347422813,1735781448723,-650.43,0.00020273,3]
[347422814,1735781448732,-668.77,0.00020273,3]
[347422815,1735781448742,-3722.61,0.00020273,3]
[347422816,1735781448751,-451.89118085,0.00020273,3]
[347422817,1735781448761,-1336.34,0.00020273,3]
[347422818,1735781448774,-1957.8,0.00020273,3]
[347422819,1735781448784,-500.0,0.00020273,3]
[347422820,1735781448793,-2438.59,0.00020273,3]
[347422821,1735781448803,-907.56,0.00020273,2]
[347422822,1735781448812,-500.0,0.00020273,3]
[347422823,1735781448822,-804.962658,0.00020273,2]
[347422824,1735781448832,-804.962658,0.00020273,2]
[347422825,1735781448842,-871.54,0.00020273,3]
[347422826,1735781448851,-500.0,0.00020273,3]
[347422827,1735781448860,-500.0,0.00020273,3]
[347422828,1735781448869,-500.0,0.00020273,3]
[347422829,1735781448879,-499.0,0.00020273,2]
[347422830,1735781448888,-583.03,0.00020273,3]
[347422831,1735781448897,-500.0,0.00020273,3]
[347422832,1735781448907,-1532.37,0.00020273,3]
[347422833,1735781448916,-500.0,0.00020273,3]
[347422834,1735781448926,-500.0,0.00020273,3]
[347422835,1735781448935,-151.0,0.00020273,2]
[347422836,1735781448944,-955.72,0.00020273,3]
[347422837,1735781448954,-1437.5,0.00020273,3]
[347422838,1735781448963,-500.0,0.00020273,3]
[347422839,1735781448972,-838.21,0.00020273,3]
[347422840,1735781448981,-500.0,0.00020273,3]
[347422841,1735781448991,-500.0,0.00020273,3]
[347422842,1735781449000,-500.0,0.00020273,3]
[347422843,1735781449009,-841.01,0.00020273,3]
[347422844,1735781449019,-962.78,0.00020273,3]
[347422845,1735781449029,-151.0,0.00020273,2]
[347422846,1735781449038,-500.0,0.00020273,3]
[347422847,1735781449047,-500.0,0.00020273,3]
[347422848,1735781449056,-1333.99,0.00020273,3]
[347422849,1735781449066,-500.0,0.00020273,3]
[347422850,1735781449075,-500.0,0.00020273,3]
[347422851,1735781449084,-535.303,0.000203,2]
[347422852,1735781449093,-1000.0,0.00020321,2]
[347422853,1735781449103,-167.99,0.00020321,2]
[347422854,1735781449112,-362.02254016,0.00020321,2]
[347422855,1735781449121,-457.44629792,0.00020447,2]
[347422856,1735781449131,-218.924366,0.00020447,2]
[347422857,1735781449140,-260.885424,0.00020521,2]
[347422858,1735781449150,-362.02254016,0.00020532,2]
[347422859,1735781449161,-500.0,0.00020547,3]
[347422860,1735781449171,-558.99311507,0.00020547,3]
[347422861,1735781449181,-182.415833,0.00020547,2]
[347422862,1735781449191,-198.600735,0.00020547,2]
[347422863,1735781449201,-198.600735,0.00020547,2]
[347422864,1735781449211,-500.0,0.00020547,3]
[347422865,1735781449220,-500.0,0.00020547,3]
[347422866,1735781449229,-635.64,0.00020547,3]
[347422867,1735781449240,-168.998437,0.00020547,2]
[347422868,1735781449249,-168.998437,0.00020547,2]
[347422869,1735781449259,-151.0,0.00020547,2]
[347422870,1735781449271,-151.0,0.00020547,2]
[347422871,1735781449280,-151.0,0.00020547,2]
[347422872,1735781449290,-500.0,0.00020547,3]
[347422873,1735781449300,-3171.44,0.00020547,3]
[347422874,1735781449310,-608.36,0.00020547,3]
[347422875,1735781449319,-500.0,0.00020547,3]
[347422876,1735781449329,-567.2,0.00020547,3]
[347422877,1735781449338,-151.0,0.00020547,2]
[347422878,1735781449348,-500.0,0.00020547,3]
[347422879,1735781449357,-151.0,0.00020547,2]
[347422880,1735781449366,-552.0,0.00020547,3]
[347422881,1735781449376,-500.0,0.00020547,3]
[347422882,1735781449386,-682.65,0.00020547,3]
[347422883,1735781449395,-500.0,0.00020547,3]
[347422884,1735781449405,-688.94,0.00020547,3]
[347422885,1735781449414,-500.0,0.00020547,3]
[347422886,1735781449423,-500.0,0.00020547,3]
[347422887,1735781449433,-500.0,0.00020547,3]
[347422888,1735781449443,-614.51,0.00020547,3]
[347422889,1735781449452,-500.0,0.00020547,3]
[347422890,1735781449461,-500.0,0.00020547,3]
[347422891,1735781449472,-500.0,0.00020547,3]
[347422892,1735781449484,-1968.22,0.00020547,3]
[347422893,1735781449493,-563.24,0.00020547,3]
[347422894,1735781449503,-988.337518,0.00020547,2]
[347422895,1735781449512,-988.337518,0.00020547,2]
[347422896,1735781449522,-500.0,0.00020547,3]
[347422897,1735781449532,-500.0,0.00020547,3]
[347422898,1735781449543,-500.0,0.00020547,3]
[347422899,1735781449553,-500.0,0.00020547,3]
[347422900,1735781449563,-772.57,0.00020547,3]
[347422901,1735781449572,-500.0,0.00020547,3]
[347422902,1735781449582,-500.0,0.00020547,3]
[347422903,1735781449593,-1364.88,0.00020547,3]
[347422904,1735781449604,-17282.47,0.00020547,3]
[347422905,1735781449616,-500.0,0.00020547,3]
[347422906,1735781449625,-500.0,0.00020547,3]
[347422907,1735781449634,-920.77,0.00020547,3]
[347422908,1735781449643,-650.43,0.00020547,3]
[347422909,1735781449652,-151.0,0.00020547,2]
[347422910,1735781449662,-668.77,0.00020547,3]
[347422911,1735781449671,-3722.61,0.00020547,3]
[347422912,1735781449681,-1336.34,0.00020547,3]
[347422913,1735781449691,-1957.8,0.00020547,3]
[347422914,1735781449701,-500.0,0.00020547,3]
[347422915,1735781449710,-2438.59,0.00020547,3]
[347422916,1735781449719,-907.56,0.00020547,2]
[347422917,1735781449730,-500.0,0.00020547,3]
[347422918,1735781449739,-871.54,0.00020547,3]
[347422919,1735781449748,-500.0,0.00020547,3]
[347422920,1735781449759,-500.0,0.00020547,3]
[347422921,1735781449769,-151.0,0.00020547,2]
[347422922,1735781449779,-500.0,0.00020547,3]
[347422923,1735781449788,-583.03,0.00020547,3]
[347422924,1735781449797,-500.0,0.00020547,3]
[347422925,1735781449806,-1532.37,0.00020547,3]
[347422926,1735781449815,-500.0,0.00020547,3]
[347422927,1735781449824,-500.0,0.00020547,3]
[347422928,1735781449833,-151.0,0.00020547,2]
[347422929,1735781449843,-955.72,0.00020547,3]
[347422930,1735781449852,-1437.5,0.00020547,3]
[347422931,1735781449861,-500.0,0.00020547,3]
[347422932,1735781449871,-838.21,0.00020547,3]
[347422933,1735781449880,-500.0,0.00020547,3]
[347422934,1735781449889,-500.0,0.00020547,3]
[347422935,1735781449899,-500.0,0.00020547,3]
[347422936,1735781449908,-841.01,0.00020547,3]
[347422937,1735781449918,-962.78,0.00020547,3]
[347422938,1735781449927,-500.0,0.00020547,3]
[347422939,1735781449936,-151.0,0.00020547,2]
[347422940,1735781449946,-500.0,0.00020547,3]
[347422941,1735781449956,-1333.99,0.00020547,3]
[347422942,1735781449965,-500.0,0.00020547,3]
[347422943,1735781449975,-500.0,0.00020547,3]
[347422944,1735781449984,-151.0,0.00020548,2]
[347422945,1735781449993,-151.0,0.00020548,2]
[347422946,1735781450003,-9270.81714146,0.00020582,2]
[347422947,1735781450012,-1008.82,0.000206,2]
[347422948,1735781450023,-151.0,0.00020643,2]
[347422949,1735781450032,-151.0,0.00020643,2]
[347422950,1735781450041,-224.771737,0.00020643,2]
[347422951,1735781450050,-224.771737,0.00020643,2]
[347422952,1735781450060,-260.885424,0.00020712,2]
[347422953,1735781450069,-362.02254016,0.00020742,2]
[347422954,1735781450078,-303.8781763,0.00020767,2]
[347422955,1735781450087,-177.227898,0.00020767,2]
[347422956,1735781450096,-306.8828424,0.00020767,2]
[347422957,1735781450106,-214.2328397,0.00020767,2]
[347422958,1735781450115,-324.64236567,0.00020814,2]
[347422959,1735781450124,-599.0283899,0.00020816,2]
[347422960,1735781450134,-500.0,0.00020821,3]
[347422961,1735781450144,-151.187512,0.00020821,2]
[347422962,1735781450153,-151.187512,0.00020821,2]
[347422963,1735781450163,-151.0,0.00020821,2]